fUSD/lending_fUSD_20260319
["ID","MTS","AMOUNT","RATE_DAILY","PERIOD"]
[408556522,1773887482333,-151.0,0.000139,2]
[408556523,1773887482341,-151.0,0.000139,2]
[408556524,1773887482350,-151.0,0.000139,2]
[408556525,1773887482359,-151.0,0.000139,2]
[408556526,1773887482368,-946.660142,0.000139,2]
[408556527,1773887482377,-946.660142,0.000139,2]
[408556528,1773887482386,-946.660142,0.000139,2]
[408556529,1773887482395,-946.660142,0.000139,2]
[408556530,1773887482404,-946.660142,0.000139,2]
[408556531,1773887482412,-946.660142,0.000139,2]
[408556532,1773887482421,-946.660142,0.000139,2]
[408556533,1773887482430,-946.660133,0.000139,2]
[408556534,1773887482439,-2499.640269,0.000139,2]
[408556535,1773887482448,-2499.640269,0.000139,2]
[408556536,1773887482456,-2499.640269,0.000139,2]
[408556537,1773887482465,-2499.640269,0.000139,2]
[408556538,1773887482474,-2499.640269,0.000139,2]
[408556539,1773887482483,-2499.640269,0.000139,2]
[408556540,1773887482492,-2499.640269,0.000139,2]
[408556541,1773887482501,-2499.64027,0.000139,2]
[408556542,1773887482510,-151.0,0.000139,2]
[408556543,1773887482519,-151.0,0.000139,2]
[408556544,1773887482528,-151.0,0.000139,2]
[408556545,1773887482536,-151.0,0.000139,2]
[408556546,1773887482546,-151.0,0.000139,2]
[408556547,1773887482555,-232.356513,0.000139,2]
[408556548,1773887482564,-700.0,0.000139,5]
[408556549,1773887482573,-300.0,0.000139,5]
[408556550,1773887482582,-803.09530237,0.00013945,2]
[408556551,1773887482592,-869.12,0.00013969,2]
[408556552,1773887482603,-150.0,0.00013973,2]
[408556553,1773887482613,-983.6661019,0.00013977,2]
[408556554,1773887482622,-350.0,0.00013983,3]
[408556555,1773887482632,-9330.11158946,0.0001399,2]
[408556556,1773887482643,-150.0,0.0001399,2]
[408556557,1773887482652,-1323.35161999,0.0001399,2]
[408556558,1773887482660,-150.0,0.0001399,2]
[408556559,1773887482671,-11513.44887448,0.0001399,2]
[408556560,1773887482680,-150.0,0.0001399,2]
[408556561,1773887482690,-1056.04131552,0.0001399,2]
[408556562,1773887482699,-300.7397185,0.00013992,2]
[408556563,1773887482709,-803.09530237,0.00014,2]
[408556564,1773887482717,-499.67825642,0.00014,2]
[408556565,1773887482726,-824.42530788,0.00014,2]
[408556566,1773887482736,-2700.0,0.00014082,2]
[408556567,1773887482745,-1100.0,0.00014082,2]
[408556568,1773887482754,-1800.0,0.00014082,2]
[408556569,1773887482763,-150.0,0.00014114,2]
[408556570,1773887482772,-216.0,0.00014114,2]
[408556571,1773887482781,-150.0,0.00014114,2]
[408556572,1773887482790,-224.056,0.00014114,2]
[408556573,1773887482798,-236.419,0.00014114,2]
[408556574,1773887482809,-219.836,0.00014114,2]
[408556575,1773887482818,-162.351,0.00014114,2]
[408556576,1773887482827,-250.0,0.00014114,2]
[408556577,1773887482837,-150.139,0.00014114,2]
[408556578,1773887482847,-193.143,0.00014114,2]
[408556579,1773887482857,-165.725,0.00014114,2]
[408556580,1773887482867,-214.469,0.00014114,2]
[408556581,1773887482876,-250.0,0.00014114,2]
[408556582,1773887482886,-238.061,0.00014114,2]
[408556583,1773887482896,-179.0,0.00014114,2]
[408556584,1773887482908,-3069.8604824,0.0001414,2]
[408556585,1773887482918,-433.0,0.00014148,2]
[408556586,1773887482928,-166.66,0.00014154,2]
[408556587,1773887482938,-172.80938708,0.00014164,2]
[408556588,1773887482948,-419.55,0.00014239,2]
[408556589,1773887482957,-869.12,0.00014243,2]
[408556590,1773887482968,-151.0,0.00014244,2]
[408556591,1773887482978,-1000.0,0.00014247,2]
[408556592,1773887482987,-1000.0,0.00014247,2]
[408556593,1773887482997,-1000.0,0.00014247,2]
[408556594,1773887483009,-1000.0,0.00014247,2]
[408556595,1773887483018,-1000.0,0.00014247,2]
[408556596,1773887483028,-1000.0,0.00014247,2]
[408556597,1773887483037,-1000.0,0.00014247,2]
[408556598,1773887483048,-226.28741406,0.00014247,2]
[408556599,1773887483059,-1000.0,0.00014247,2]
[408556600,1773887483069,-1000.0,0.00014247,2]
[408556601,1773887483080,-1000.0,0.00014247,2]
[408556602,1773887483094,-1000.0,0.00014247,2]
[408556603,1773887483104,-282.85176182,0.00014247,2]
[408556604,1773887483113,-1000.0,0.00014247,2]
[408556605,1773887483122,-1000.0,0.00014247,2]
[408556606,1773887483132,-1000.0,0.00014247,2]
[408556607,1773887483141,-857.17487336,0.00014247,2]
[408556608,1773887483151,-1000.0,0.00014247,2]
[408556609,1773887483160,-1000.0,0.00014247,2]
[408556610,1773887483172,-1000.0,0.00014247,2]
[408556611,1773887483181,-1000.0,0.00014247,2]
[408556612,1773887483190,-1000.0,0.00014247,2]
[408556613,1773887483200,-1000.0,0.00014247,2]
[408556614,1773887483210,-414.02499317,0.00014247,2]
[408556615,1773887483219,-1000.0,0.00014247,2]
[408556616,1773887483229,-1000.0,0.00014247,2]
[408556617,1773887483238,-1000.0,0.00014247,2]
[408556618,1773887483249,-1000.0,0.00014247,2]
[408556619,1773887483259,-1000.0,0.00014247,2]
[408556620,1773887483270,-1000.0,0.00014247,2]
[408556621,1773887483279,-1000.0,0.00014247,2]
[408556622,1773887483288,-1000.0,0.00014247,2]
[408556623,1773887483298,-1000.0,0.00014247,2]
[408556624,1773887483309,-1000.0,0.00014247,2]
[408556625,1773887483318,-1000.0,0.00014247,2]
[408556626,1773887483327,-1000.0,0.00014247,2]
[408556627,1773887483336,-1000.0,0.00014247,2]
[408556628,1773887483347,-412.99392051,0.00014247,2]
[408556629,1773887483357,-389.68962136,0.00014247,2]
[408556630,1773887483367,-1000.0,0.00014247,2]
[408556631,1773887483379,-1000.0,0.00014247,2]
[408556632,1773887483388,-1000.0,0.00014247,2]
[408556633,1773887483399,-1000.0,0.00014247,2]
[408556634,1773887483410,-1000.0,0.00014247,2]
[408556635,1773887483419,-151.0,0.00014247,2]
[408556636,1773887483429,-151.0,0.00014247,2]
[408556637,1773887483440,-257.18017,0.00014247,2]
[408556638,1773887483450,-257.18017,0.00014247,2]
[408556639,1773887483459,-257.18017,0.00014247,2]
[408556640,1773887483468,-257.18017,0.00014247,2]
[408556641,1773887483477,-497.442973,0.00014247,2]
[408556642,1773887483486,-497.442973,0.00014247,2]
[408556643,1773887483496,-497.442973,0.00014247,2]
[408556644,1773887483508,-497.442973,0.00014247,2]
[408556645,1773887483518,-503.170085,0.00014247,2]
[408556646,1773887483527,-503.170085,0.00014247,2]
[408556647,1773887483536,-503.170085,0.00014247,2]
[408556648,1773887483546,-503.170085,0.00014247,2]
[408556649,1773887483556,-154.056591,0.00014247,2]
[408556650,1773887483566,-154.056591,0.00014247,2]
[408556651,1773887483576,-154.056591,0.00014247,2]
[408556652,1773887483587,-154.056591,0.00014247,2]
[408556653,1773887483597,-4518.228758,0.00014247,2]
[408556654,1773887483606,-253.911244,0.00014247,2]
[408556655,1773887483617,-4518.228758,0.00014247,2]
[408556656,1773887483627,-253.911244,0.00014247,2]
[408556657,1773887483636,-4518.228758,0.00014247,2]
[408556658,1773887483646,-253.911244,0.00014247,2]
[408556659,1773887483656,-4518.228758,0.00014247,2]
[408556660,1773887483665,-253.911244,0.00014247,2]
[408556661,1773887483676,-186.674432,0.00014247,2]
[408556662,1773887483685,-151.0,0.00014247,2]
[408556663,1773887483694,-151.0,0.00014247,2]
[408556664,1773887483704,-186.674432,0.00014247,2]
[408556665,1773887483713,-151.0,0.00014247,2]
[408556666,1773887483722,-186.674432,0.00014247,2]
[408556667,1773887483731,-186.674432,0.00014247,2]
[408556668,1773887483741,-203.716312,0.00014247,2]
[408556669,1773887483750,-151.0,0.00014247,2]
[408556670,1773887483759,-151.0,0.00014247,2]
[408556671,1773887483769,-151.0,0.00014247,2]
[408556672,1773887483778,-151.0,0.00014247,2]
[408556673,1773887483787,-228.00533,0.00014247,2]
[408556674,1773887483797,-151.0,0.00014247,2]
[408556675,1773887483806,-228.00533,0.00014247,2]
[408556676,1773887483817,-228.00533,0.00014247,2]
[408556677,1773887483826,-228.00533,0.00014247,2]
[408556678,1773887483835,-151.0,0.00014247,2]
[408556679,1773887483845,-151.0,0.00014247,2]
[408556680,1773887483855,-151.0,0.00014247,2]
[408556681,1773887483865,-1261.80267,0.00014247,2]
[408556682,1773887483875,-1261.80267,0.00014247,2]
[408556683,1773887483886,-689.574427,0.00014247,2]
[408556684,1773887483897,-1261.80267,0.00014247,2]
[408556685,1773887483906,-279.733987,0.00014247,2]
[408556686,1773887483916,-689.574427,0.00014247,2]
[408556687,1773887483926,-1261.80267,0.00014247,2]
[408556688,1773887483935,-279.733987,0.00014247,2]
[408556689,1773887483944,-689.574427,0.00014247,2]
[408556690,1773887483954,-279.733987,0.00014247,2]
[408556691,1773887483963,-689.574427,0.00014247,2]
[408556692,1773887483972,-279.733987,0.00014247,2]
[408556693,1773887483981,-519.776709,0.00014247,2]
[408556694,1773887483990,-151.0,0.00014247,2]
[408556695,1773887483999,-151.0,0.00014247,2]
[408556696,1773887484008,-519.776709,0.00014247,2]
[408556697,1773887484018,-177.656156,0.00014247,2]
[408556698,1773887484027,-519.776709,0.00014247,2]
[408556699,1773887484036,-151.0,0.00014247,2]
[408556700,1773887484045,-177.656156,0.00014247,2]
[408556701,1773887484054,-519.776709,0.00014247,2]
[408556702,1773887484063,-151.0,0.00014247,2]
[408556703,1773887484072,-177.656156,0.00014247,2]
[408556704,1773887484081,-490.909827,0.00014247,2]
[408556705,1773887484094,-178.765776,0.00014247,2]
[408556706,1773887484103,-177.656156,0.00014247,2]
[408556707,1773887484113,-490.909827,0.00014247,2]
[408556708,1773887484125,-490.909827,0.00014247,2]
[408556709,1773887484137,-151.0,0.00014247,2]
[408556710,1773887484147,-490.909827,0.00014247,2]
[408556711,1773887484156,-151.0,0.00014247,2]
[408556712,1773887484169,-151.0,0.00014247,2]
[408556713,1773887484180,-236.569992,0.00014247,2]
[408556714,1773887484191,-204.631842,0.00014247,2]
[408556715,1773887484201,-204.631842,0.00014247,2]
[408556716,1773887484210,-204.631842,0.00014247,2]
[408556717,1773887484219,-204.631842,0.00014247,2]
[408556718,1773887484229,-1328.388521,0.00014247,2]
[408556719,1773887484238,-1328.388521,0.00014247,2]
[408556720,1773887484248,-151.0,0.00014247,2]
[408556721,1773887484258,-1328.388521,0.00014247,2]
[408556722,1773887484269,-1328.388521,0.00014247,2]
[408556723,1773887484434,-219.942968,0.00014247,2]
[408556724,1773887484459,-219.942968,0.00014247,2]
[408556725,1773887484468,-224.930614,0.00014247,2]
[408556726,1773887484478,-219.942968,0.00014247,2]
[408556727,1773887484487,-224.930614,0.00014247,2]
[408556728,1773887484496,-219.942968,0.00014247,2]
[408556729,1773887484505,-224.930614,0.00014247,2]
[408556730,1773887484514,-224.930618,0.00014247,2]
[408556731,1773887484523,-151.0,0.00014247,2]
[408556732,1773887484532,-454.939778,0.00014247,2]
[408556733,1773887484541,-151.0,0.00014247,2]
[408556734,1773887484550,-454.939778,0.00014247,2]
[408556735,1773887484560,-190.616244,0.00014247,2]
[408556736,1773887484569,-454.939778,0.00014247,2]
[408556737,1773887484578,-454.93978,0.00014247,2]
[408556738,1773887484587,-1227.744422,0.00014247,2]
[408556739,1773887484597,-1227.744422,0.00014247,2]
[408556740,1773887484607,-1227.744422,0.00014247,2]
[408556741,1773887484618,-1227.744413,0.00014247,2]
[408556742,1773887484627,-500.0,0.00014247,2]
[408556743,1773887484636,-500.0,0.00014247,2]
[408556744,1773887484646,-500.0,0.00014247,2]
[408556745,1773887484657,-500.0,0.00014247,2]
[408556746,1773887484666,-151.0,0.00014247,2]
[408556747,1773887484676,-782.3,0.000143,2]
[408556748,1773887484686,-1024.56,0.000143,2]
[408556749,1773887484697,-5406.91527578,0.00014305,2]
[408556750,1773887484707,-164.511381,0.00014344,7]
[408556751,1773887484717,-376.949851,0.00014344,7]
[408556752,1773887484726,-316.157506,0.00014344,7]
[408556753,1773887484737,-587.0,0.00014354,2]
[408556754,1773887484747,-169.09,0.00014357,2]
[408556755,1773887484757,-2815.91,0.00014384,2]
[408556756,1773887484766,-154.42032794,0.00014389,2]
[408556757,1773887484775,-10385.50220008,0.0001439,2]
[408556758,1773887484784,-2014.0,0.000144,2]
[408556759,1773887484795,-2351.0,0.00014409,2]
[408556760,1773887484804,-151.0,0.00014421,2]
[408556761,1773887484815,-151.0,0.00014421,2]
[408556762,1773887484825,-151.0,0.00014421,2]
[408556763,1773887484834,-151.0,0.00014421,2]
[408556764,1773887484843,-151.0,0.00014421,2]
[408556765,1773887484853,-151.0,0.00014421,2]
[408556766,1773887484863,-151.0,0.00014421,2]
[408556767,1773887484872,-151.0,0.00014421,2]
[408556768,1773887484881,-151.0,0.00014421,2]
[408556769,1773887484891,-151.0,0.00014421,2]
[408556770,1773887484901,-151.0,0.00014421,2]
[408556771,1773887484910,-151.0,0.00014421,2]
[408556772,1773887484919,-151.0,0.00014421,2]
[408556773,1773887484928,-151.0,0.00014421,2]
[408556774,1773887484938,-1405.658705,0.00014421,2]
[408556775,1773887484948,-1405.658705,0.00014421,2]
[408556776,1773887484957,-1405.658705,0.00014421,2]
[408556777,1773887484967,-1405.658705,0.00014421,2]
[408556778,1773887484977,-151.0,0.00014421,2]
[408556779,1773887484987,-151.0,0.00014421,2]
[408556780,1773887484996,-1585.436337,0.00014421,2]
[408556781,1773887485007,-1585.436337,0.00014421,2]
[408556782,1773887485017,-1585.436337,0.00014421,2]
[408556783,1773887485027,-1585.436337,0.00014421,2]
[408556784,1773887485036,-516.130485,0.00014421,2]
[408556785,1773887485046,-516.130485,0.00014421,2]
[408556786,1773887485056,-516.130485,0.00014421,2]
[408556787,1773887485067,-516.130485,0.00014421,2]
[408556788,1773887485076,-151.0,0.00014421,2]
[408556789,1773887485087,-151.0,0.00014421,2]
[408556790,1773887485101,-205.4162,0.00014421,2]
[408556791,1773887485110,-151.0,0.00014421,2]
[408556792,1773887485119,-228.00533,0.00014421,2]
[408556793,1773887485130,-151.0,0.00014421,2]
[408556794,1773887485139,-228.00533,0.00014421,2]
[408556795,1773887485149,-228.00533,0.00014421,2]
[408556796,1773887485158,-228.00533,0.00014421,2]
[408556797,1773887485170,-151.0,0.00014421,2]
[408556798,1773887485179,-151.0,0.00014421,2]
[408556799,1773887485188,-151.0,0.00014421,2]
[408556800,1773887485199,-1261.80267,0.00014421,2]
[408556801,1773887485208,-1261.80267,0.00014421,2]
[408556802,1773887485218,-689.574427,0.00014421,2]
[408556803,1773887485228,-1261.80267,0.00014421,2]
[408556804,1773887485239,-279.733987,0.00014421,2]
[408556805,1773887485251,-689.574427,0.00014421,2]
[408556806,1773887485261,-1261.80267,0.00014421,2]
[408556807,1773887485271,-279.733987,0.00014421,2]
[408556808,1773887485281,-689.574427,0.00014421,2]
[408556809,1773887485292,-279.733987,0.00014421,2]
[408556810,1773887485302,-689.574427,0.00014421,2]
[408556811,1773887485313,-279.733987,0.00014421,2]
[408556812,1773887485323,-519.776709,0.00014421,2]
[408556813,1773887485334,-151.0,0.00014421,2]
[408556814,1773887485345,-151.0,0.00014421,2]
[408556815,1773887485355,-519.776709,0.00014421,2]
[408556816,1773887485364,-177.656156,0.00014421,2]
[408556817,1773887485374,-519.776709,0.00014421,2]
[408556818,1773887485384,-151.0,0.00014421,2]
[408556819,1773887485394,-177.656156,0.00014421,2]
[408556820,1773887485404,-519.776711,0.00014421,2]
[408556821,1773887485414,-151.0,0.00014421,2]
[408556822,1773887485425,-177.656156,0.00014421,2]
[408556823,1773887485439,-490.909827,0.00014421,2]
[408556824,1773887485450,-177.656149,0.00014421,2]
[408556825,1773887485460,-490.909827,0.00014421,2]
[408556826,1773887485470,-490.909827,0.00014421,2]
[408556827,1773887485480,-151.0,0.00014421,2]
[408556828,1773887485491,-490.90983,0.00014421,2]
[408556829,1773887485502,-151.0,0.00014421,2]
[408556830,1773887485511,-151.0,0.00014421,2]
[408556831,1773887485521,-204.631842,0.00014421,2]
[408556832,1773887485531,-204.631842,0.00014421,2]
[408556833,1773887485541,-204.631842,0.00014421,2]
[408556834,1773887485550,-204.63184,0.00014421,2]
[408556835,1773887485560,-1328.388521,0.00014421,2]
[408556836,1773887485569,-1328.388521,0.00014421,2]
[408556837,1773887485578,-1328.388521,0.00014421,2]
[408556838,1773887485588,-1328.388512,0.00014421,2]
[408556839,1773887485597,-219.942968,0.00014421,2]
[408556840,1773887485606,-219.942968,0.00014421,2]
[408556841,1773887485616,-219.942968,0.00014421,2]
[408556842,1773887485625,-219.942964,0.00014421,2]
[408556843,1773887485635,-500.0,0.00014421,2]
[408556844,1773887485644,-500.0,0.00014421,2]
[408556845,1773887485653,-500.0,0.00014421,2]
[408556846,1773887485663,-500.0,0.00014421,2]
[408556847,1773887485672,-151.0,0.00014477,2]
[408556848,1773887485681,-684.978461,0.00014495,2]
[408556849,1773887485691,-2402.0,0.000145,2]
[408556850,1773887485700,-186.932352,0.00014504,7]
[408556851,1773887485710,-186.614125,0.00014504,7]
[408556852,1773887485719,-979.16666667,0.00014505,2]
[408556853,1773887485729,-160.0,0.00014506,2]
[408556854,1773887485738,-869.12,0.00014517,2]
[408556855,1773887485748,-274.98374608,0.00014556,2]
[408556856,1773887485758,-184.66,0.00014567,30]
[408556857,1773887485768,-166.66,0.00014567,2]
[408556858,1773887485777,-378.971868,0.00014602,7]
[408556859,1773887485791,-157.52,0.00014647,2]
[408556860,1773887485801,-150.0,0.00014676,2]
[408556861,1773887485811,-150.0,0.00014676,2]
[408556862,1773887485821,-150.0,0.00014676,2]
[408556863,1773887485831,-150.0,0.00014676,2]
[408556864,1773887485841,-150.0,0.00014676,2]
[408556865,1773887485851,-206.0,0.00014676,2]
[408556866,1773887485861,-1567.0,0.0001472,2]
[408556867,1773887485872,-2402.0,0.0001476,2]
[408556868,1773887485883,-157.52,0.00014787,2]
[408556869,1773887485893,-869.12,0.00014791,2]
[408556870,1773887485904,-151.0,0.00014792,2]
[408556871,1773887485915,-1500.0,0.00014795,2]
[408556872,1773887485924,-1500.0,0.00014795,2]
[408556873,1773887485935,-1500.0,0.00014795,2]
[408556874,1773887485945,-1500.0,0.00014795,2]
[408556875,1773887485955,-1500.0,0.00014795,2]
[408556876,1773887485964,-719.49027864,0.00014795,2]
[408556877,1773887485973,-1500.0,0.00014795,2]
[408556878,1773887485982,-1500.0,0.00014795,2]
[408556879,1773887485992,-1500.0,0.00014795,2]
[408556880,1773887486000,-1500.0,0.00014795,2]
[408556881,1773887486010,-846.68886321,0.00014795,2]
[408556882,1773887486020,-1500.0,0.00014795,2]
[408556883,1773887486030,-301.7381184,0.00014795,2]
[408556884,1773887486040,-1500.0,0.00014795,2]
[408556885,1773887486049,-1500.0,0.00014795,2]
[408556886,1773887486060,-1047.2319377,0.00014795,2]
[408556887,1773887486071,-1500.0,0.00014795,2]
[408556888,1773887486082,-1500.0,0.00014795,2]
[408556889,1773887486095,-1500.0,0.00014795,2]
[408556890,1773887486106,-1500.0,0.00014795,2]
[408556891,1773887486117,-1500.0,0.00014795,2]
[408556892,1773887486128,-1005.49650087,0.00014795,2]
[408556893,1773887486140,-1500.0,0.00014795,2]
[408556894,1773887486154,-1500.0,0.00014795,2]
[408556895,1773887486165,-1500.0,0.00014795,2]
[408556896,1773887486176,-1500.0,0.00014795,2]
[408556897,1773887486187,-1500.0,0.00014795,2]
[408556898,1773887486198,-1500.0,0.00014795,2]
[408556899,1773887486207,-1500.0,0.00014795,2]
[408556900,1773887486217,-1176.85294544,0.00014795,2]
[408556901,1773887486227,-1500.0,0.00014795,2]
[408556902,1773887486236,-1500.0,0.00014795,2]
[408556903,1773887486245,-1500.0,0.00014795,2]
[408556904,1773887486255,-1500.0,0.00014795,2]
[408556905,1773887486264,-1500.0,0.00014795,2]
[408556906,1773887486273,-1500.0,0.00014795,2]
[408556907,1773887486283,-1500.0,0.00014795,2]
[408556908,1773887486292,-1500.0,0.00014795,2]
[408556909,1773887486302,-151.0,0.00014795,2]
[408556910,1773887486312,-347.58021,0.00014795,2]
[408556911,1773887486321,-347.58021,0.00014795,2]
[408556912,1773887486330,-347.58021,0.00014795,2]
[408556913,1773887486341,-347.58021,0.00014795,2]
[408556914,1773887486355,-151.0,0.00014795,2]
[408556915,1773887486365,-151.0,0.00014795,2]
[408556916,1773887486374,-257.18017,0.00014795,2]
[408556917,1773887486385,-257.18017,0.00014795,2]
[408556918,1773887486395,-257.18017,0.00014795,2]
[408556919,1773887486405,-257.18017,0.00014795,2]
[408556920,1773887486415,-497.442973,0.00014795,2]
[408556921,1773887486426,-497.442973,0.00014795,2]
[408556922,1773887486436,-497.442973,0.00014795,2]
[408556923,1773887486446,-497.442973,0.00014795,2]
[408556924,1773887486457,-503.170085,0.00014795,2]
[408556925,1773887486467,-503.170085,0.00014795,2]
[408556926,1773887486477,-503.170085,0.00014795,2]
[408556927,1773887486487,-503.170085,0.00014795,2]
[408556928,1773887486498,-154.056591,0.00014795,2]
[408556929,1773887486507,-154.056591,0.00014795,2]
[408556930,1773887486516,-154.056591,0.00014795,2]
[408556931,1773887486525,-154.056591,0.00014795,2]
[408556932,1773887486535,-4518.228758,0.00014795,2]
[408556933,1773887486547,-253.911244,0.00014795,2]
[408556934,1773887486556,-4518.228758,0.00014795,2]
[408556935,1773887486566,-253.911244,0.00014795,2]
[408556936,1773887486575,-4518.228758,0.00014795,2]
[408556937,1773887486584,-253.911244,0.00014795,2]
[408556938,1773887486594,-4518.228758,0.00014795,2]
[408556939,1773887486604,-253.911244,0.00014795,2]
[408556940,1773887486614,-151.0,0.00014795,2]
[408556941,1773887486624,-151.0,0.00014795,2]
[408556942,1773887486634,-151.0,0.00014795,2]
[408556943,1773887486643,-151.0,0.00014795,2]
[408556944,1773887486652,-186.674432,0.00014795,2]
[408556945,1773887486661,-151.0,0.00014795,2]
[408556946,1773887486672,-224.892446,0.00014795,2]
[408556947,1773887486681,-151.0,0.00014795,2]
[408556948,1773887486691,-151.0,0.00014795,2]
[408556949,1773887486701,-151.0,0.00014795,2]
[408556950,1773887486710,-151.0,0.00014795,2]
[408556951,1773887486721,-186.674432,0.00014795,2]
[408556952,1773887486731,-151.0,0.00014795,2]
[408556953,1773887486740,-151.0,0.00014795,2]
[408556954,1773887486749,-186.674432,0.00014795,2]
[408556955,1773887486759,-151.0,0.00014795,2]
[408556956,1773887486768,-186.674432,0.00014795,2]
[408556957,1773887486778,-1405.658705,0.00014795,2]
[408556958,1773887486787,-1405.658705,0.00014795,2]
[408556959,1773887486796,-1405.658705,0.00014795,2]
[408556960,1773887486806,-1405.658705,0.00014795,2]
[408556961,1773887486815,-151.0,0.00014795,2]
[408556962,1773887486824,-151.0,0.00014795,2]
[408556963,1773887486833,-1585.436337,0.00014795,2]
[408556964,1773887486843,-1585.436337,0.00014795,2]
[408556965,1773887486852,-1585.436337,0.00014795,2]
[408556966,1773887486862,-1585.436337,0.00014795,2]
[408556967,1773887486871,-516.130485,0.00014795,2]
[408556968,1773887487018,-516.130485,0.00014795,2]
[408556969,1773887487029,-516.130485,0.00014795,2]
[408556970,1773887487039,-516.130485,0.00014795,2]
[408556971,1773887487049,-151.0,0.00014795,2]
[408556972,1773887487059,-151.0,0.00014795,2]
[408556973,1773887487068,-151.0,0.00014795,2]
[408556974,1773887487078,-228.00533,0.00014795,2]
[408556975,1773887487088,-218.696118,0.00014795,2]
[408556976,1773887487101,-228.00533,0.00014795,2]
[408556977,1773887487111,-228.00533,0.00014795,2]
[408556978,1773887487121,-228.005333,0.00014795,2]
[408556979,1773887487131,-151.0,0.00014795,2]
[408556980,1773887487143,-151.0,0.00014795,2]
[408556981,1773887487152,-151.0,0.00014795,2]
[408556982,1773887487163,-1261.80267,0.00014795,2]
[408556983,1773887487174,-1261.80267,0.00014795,2]
[408556984,1773887487184,-689.574427,0.00014795,2]
[408556985,1773887487194,-1261.80267,0.00014795,2]
[408556986,1773887487204,-279.733987,0.00014795,2]
[408556987,1773887487214,-689.574427,0.00014795,2]
[408556988,1773887487223,-1261.802665,0.00014795,2]
[408556989,1773887487233,-279.733987,0.00014795,2]
[408556990,1773887487243,-689.574427,0.00014795,2]
[408556991,1773887487252,-279.733987,0.00014795,2]
[408556992,1773887487262,-689.574432,0.00014795,2]
[408556993,1773887487272,-279.733979,0.00014795,2]
[408556994,1773887487282,-151.0,0.00014795,2]
[408556995,1773887487291,-151.0,0.00014795,2]
[408556996,1773887487300,-151.0,0.00014795,2]
[408556997,1773887487310,-150.0,0.00014818,2]
[408556998,1773887487319,-150.0,0.00014818,2]
[408556999,1773887487329,-150.0,0.00014818,2]
[408557000,1773887487339,-150.0,0.00014818,2]
[408557001,1773887487349,-150.0,0.00014818,2]
[408557002,1773887487359,-219.0,0.00014818,2]
[408557003,1773887487370,-151.0,0.00014821,2]
[408557004,1773887487380,-151.0,0.00014821,2]
[408557005,1773887487390,-287.703732,0.00014821,2]
[408557006,1773887487399,-73953.68095213,0.000149,2]
[408557007,1773887487410,-151.0,0.000149,2]
[408557008,1773887487419,-151.0,0.000149,2]
[408557009,1773887487430,-151.0,0.000149,2]
[408557010,1773887487443,-151.0,0.000149,2]
[408557011,1773887487453,-151.0,0.000149,2]
[408557012,1773887487463,-151.0,0.000149,2]
[408557013,1773887487473,-151.0,0.000149,2]
[408557014,1773887487483,-151.0,0.000149,2]
[408557015,1773887487493,-151.0,0.000149,2]
[408557016,1773887487502,-257.18017,0.000149,2]
[408557017,1773887487512,-257.18017,0.000149,2]
[408557018,1773887487523,-257.18017,0.000149,2]
[408557019,1773887487533,-257.18017,0.000149,2]
[408557020,1773887487542,-497.442973,0.000149,2]
[408557021,1773887487552,-497.442973,0.000149,2]